fUST/lending_fUST_20240727
["ID","MTS","AMOUNT","RATE_DAILY","PERIOD"]
[333376488,1722082242740,-500.0,0.00013698,2]
[333376489,1722082242751,-672.42863396,0.00013698,2]
[333376490,1722082242764,-617.79136604,0.00013698,2]
[333376491,1722082242774,-789.61,0.00013698,2]
[333376492,1722082242785,-500.0,0.00013698,2]
[333376493,1722082242794,-500.0,0.00013698,2]
[333376494,1722082242803,-500.0,0.00013698,2]
[333376496,1722082242812,-999.3,0.00013698,2]
[333376498,1722082242822,-3561.28,0.00013698,2]
[333376499,1722082242831,-500.0,0.00013698,2]
[333376500,1722082242840,-500.0,0.00013698,2]
[333376501,1722082242849,-500.0,0.00013698,2]
[333376503,1722082242858,-500.0,0.00013698,2]
[333376504,1722082242868,-784.32,0.00013698,2]
[333376505,1722082242877,-360.93407008,0.00013698,2]
[333376513,1722082243052,-139.06592992,0.00013698,2]
[333376515,1722082243063,-500.0,0.00013698,2]
[333376516,1722082243072,-500.0,0.00013698,2]
[333376518,1722082243081,-1617.2,0.00013698,2]
[333376519,1722082243091,-894.57,0.00013698,2]
[333376520,1722082243100,-500.0,0.00013698,2]
[333376521,1722082243110,-500.0,0.00013698,2]
[333376522,1722082243120,-500.0,0.00013698,2]
[333376523,1722082243129,-89.69614808,0.00013698,2]
[333376524,1722082243141,-93.52049374,0.00013698,2]
[333376525,1722082243152,-500.0,0.00013698,2]
[333376526,1722082243161,-1145.24,0.00013698,2]
[333376527,1722082243171,-500.0,0.00013698,2]
[333376528,1722082243181,-500.0,0.00013698,2]
[333376530,1722082243191,-500.0,0.00013698,2]
[333376531,1722082243201,-500.0,0.00013698,2]
[333376532,1722082243211,-500.0,0.00013698,2]
[333376533,1722082243220,-879.9,0.00013698,2]
[333376534,1722082243230,-500.0,0.00013698,2]
[333376535,1722082243240,-6308.4,0.00013698,2]
[333376537,1722082243250,-648.04370765,0.00013698,2]
[333376539,1722082243259,-1881.91,0.00013698,2]
[333376541,1722082243269,-500.0,0.00013698,2]
[333376543,1722082243279,-2666.92,0.00013698,2]
[333376544,1722082243289,-1312.67,0.00013698,2]
[333376546,1722082243298,-595.66,0.00013698,2]
[333376548,1722082243308,-303.95111638,0.00013698,2]
[333376550,1722082243318,-616.14,0.00013698,2]
[333376552,1722082243328,-256.12725497,0.00013698,2]
[333376555,1722082243345,-937.11274503,0.00013698,2]
[333376557,1722082243355,-71.75809074,0.00013698,2]
[333376564,1722082243551,-444.18190926,0.00013698,2]
[333376566,1722082243561,-687.48,0.00013698,2]
[333376568,1722082243571,-500.0,0.00013698,2]
[333376569,1722082243582,-500.0,0.00013698,2]
[333376571,1722082243592,-1160.86,0.00013698,2]
[333376573,1722082243601,-500.0,0.00013698,2]
[333376575,1722082243611,-500.0,0.00013698,2]
[333376577,1722082243621,-500.0,0.00013698,2]
[333376579,1722082243631,-738.22,0.00013698,2]
[333376581,1722082243641,-500.0,0.00013698,2]
[333376583,1722082243650,-500.0,0.00013698,2]
[333376585,1722082243660,-500.0,0.00013698,2]
[333376587,1722082243669,-1056.91,0.00013698,2]
[333376588,1722082243679,-500.0,0.00013698,2]
[333376590,1722082243689,-500.0,0.00013698,2]
[333376592,1722082243699,-595.14,0.00013698,2]
[333376595,1722082243709,-871.63,0.00013698,2]
[333376597,1722082243718,-500.0,0.00013698,2]
[333376599,1722082243727,-2677.41,0.00013698,2]
[333376601,1722082243736,-1098.75,0.00013698,2]
[333376602,1722082243746,-4755.11,0.00013698,2]
[333376604,1722082243755,-500.0,0.00013698,2]
[333376606,1722082243765,-874.1,0.00013698,2]
[333376608,1722082243774,-564.13,0.00013698,2]
[333376610,1722082243783,-915.2,0.00013698,2]
[333376612,1722082243792,-930.87,0.00013698,2]
[333376613,1722082243802,-807.65,0.00013698,2]
[333376615,1722082243811,-541.14,0.00013698,2]
[333376617,1722082243820,-500.0,0.00013698,2]
[333376619,1722082243830,-1057.34,0.00013698,2]
[333376621,1722082243840,-500.0,0.00013698,2]
[333376623,1722082243849,-500.0,0.00013698,2]
[333376625,1722082243859,-930.17,0.00013698,2]
[333376627,1722082243869,-597.81,0.00013698,2]
[333376628,1722082243878,-500.0,0.00013698,2]
[333376630,1722082243887,-507.93,0.00013698,2]
[333376632,1722082243897,-500.0,0.00013698,2]
[333376634,1722082243906,-1299.34,0.00013698,2]
[333376636,1722082243915,-500.0,0.00013698,2]
[333376638,1722082243924,-1224.05,0.00013698,2]
[333376640,1722082243933,-600.26,0.00013698,2]
[333376642,1722082243942,-795.94724864,0.00013698,2]
[333376897,1722082246576,-129.15275136,0.00013698,2]
[333376899,1722082246586,-500.0,0.00013698,2]
[333376902,1722082246596,-297.35115299,0.00013698,2]
[333376904,1722082246606,-500.0,0.00013698,2]
[333376906,1722082246615,-500.0,0.00013698,2]
[333376908,1722082246625,-500.0,0.00013698,2]
[333376910,1722082246635,-500.0,0.00013698,2]
[333376912,1722082246644,-500.0,0.00013698,2]
[333376914,1722082246654,-500.0,0.00013698,2]
[333376916,1722082246664,-500.0,0.00013698,2]
[333376918,1722082246674,-500.0,0.00013698,2]
[333376920,1722082246683,-173.02759418,0.00013698,2]
[333376922,1722082246693,-500.0,0.00013698,2]
[333376924,1722082246703,-500.0,0.00013698,2]
[333376926,1722082246712,-500.0,0.00013698,2]
[333376928,1722082246722,-500.0,0.00013698,2]
[333376930,1722082246731,-500.0,0.00013698,2]
[333376932,1722082246740,-500.0,0.00013698,2]
[333376934,1722082246750,-500.0,0.00013698,2]
[333376936,1722082246763,-500.0,0.00013698,2]
[333376938,1722082246774,-500.0,0.00013698,2]
[333376940,1722082246783,-500.0,0.00013698,2]
[333376942,1722082246793,-277.80861309,0.00013698,2]
[333376944,1722082246802,-2290.55,0.00013698,2]
[333376946,1722082246812,-500.0,0.00013698,2]
[333376948,1722082246822,-957.66,0.00013698,2]
[333376950,1722082246832,-1895.44,0.00013698,2]
[333376952,1722082246841,-167.991369,0.00013699,2]
[333376954,1722082246851,-196.86974301,0.00013735,2]
[333376956,1722082246860,-771.8042138,0.00013748,2]
[333376958,1722082246870,-5887.6399626,0.0001378,2]
[333376960,1722082246880,-270.293207,0.0001379,2]
[333376962,1722082246889,-3121.593224,0.0001379,2]
[333376964,1722082246899,-270.293207,0.0001379,2]
[333376966,1722082246908,-3121.593224,0.0001379,2]
[333376968,1722082246917,-958.529847,0.0001379,2]
[333376970,1722082246926,-958.529847,0.0001379,2]
[333376972,1722082246936,-2588.274973,0.0001379,2]
[333376974,1722082246945,-2588.274973,0.0001379,2]
[333376976,1722082246955,-4705.395629,0.0001379,2]
[333376978,1722082246965,-4705.395629,0.0001379,2]
[333376980,1722082246975,-10185.34962745,0.000138,2]
[333376982,1722082246988,-7527.52072221,0.0001381,2]
[333376984,1722082246998,-194.45654901,0.0001381,2]
[333376987,1722082247013,-571.0817037,0.00013832,2]
[333376989,1722082247023,-2000.0,0.00013841,2]
[333376990,1722082247032,-1000.0,0.00013841,2]
[333376993,1722082247043,-196.86974301,0.00013872,2]
[333376995,1722082247053,-7717.93722481,0.00013872,2]
[333376997,1722082247064,-509.97787155,0.000139,2]
[333376998,1722082247075,-150.112233,0.000139,2]
[333377001,1722082247084,-150.112233,0.000139,2]
[333377002,1722082247094,-5887.6399626,0.00013931,2]
[333377004,1722082247104,-2943.8199813,0.00013941,2]
[333377006,1722082247114,-151.0,0.00013941,2]
[333377009,1722082247124,-151.0,0.00013941,2]
[333377011,1722082247133,-151.0,0.00013941,2]
[333377012,1722082247143,-151.0,0.00013941,2]
[333377015,1722082247153,-151.0,0.00013941,2]
[333377016,1722082247162,-151.0,0.00013941,2]
[333377018,1722082247172,-151.0,0.00013941,2]
[333377020,1722082247181,-917.22218,0.00013941,2]
[333377022,1722082247190,-917.22218,0.00013941,2]
[333377024,1722082247200,-270.293207,0.00013941,2]
[333377026,1722082247210,-3121.593224,0.00013941,2]
[333377028,1722082247220,-270.293207,0.00013941,2]
[333377030,1722082247230,-3121.593224,0.00013941,2]
[333377032,1722082247239,-958.529847,0.00013941,2]
[333377034,1722082247248,-958.529847,0.00013941,2]
[333377036,1722082247259,-2588.274973,0.00013941,2]
[333377038,1722082247268,-2588.274973,0.00013941,2]
[333377040,1722082247278,-151.0,0.00013941,2]
[333377042,1722082247288,-4705.395629,0.00013941,2]
[333377044,1722082247297,-4705.395629,0.00013941,2]
[333377046,1722082247306,-633.98423,0.00013941,2]
[333377048,1722082247316,-192.183996,0.00013941,2]
[333377050,1722082247324,-633.98423,0.00013941,2]
[333377052,1722082247333,-192.183996,0.00013941,2]
[333377054,1722082247343,-151.0,0.00013941,2]
[333377056,1722082247352,-151.0,0.00013941,2]
[333377058,1722082247361,-177.494034,0.00013941,2]
[333377060,1722082247370,-177.494034,0.00013941,2]
[333377062,1722082247380,-348.809054,0.00013941,2]
[333377064,1722082247389,-348.809054,0.00013941,2]
[333377066,1722082247398,-297.79826,0.00013941,2]
[333377068,1722082247407,-297.79826,0.00013941,2]
[333377070,1722082247417,-151.0,0.00013941,2]
[333377072,1722082247426,-151.0,0.00013941,2]
[333377074,1722082247436,-2321.155208,0.00013941,2]
[333377076,1722082247446,-151.0,0.00013941,2]
[333377079,1722082247456,-2321.155208,0.00013941,2]
[333377081,1722082247465,-151.0,0.00013941,2]
[333377083,1722082247474,-1506.348376,0.00013941,2]
[333377085,1722082247484,-1506.348376,0.00013941,2]
[333377087,1722082247493,-158.687503,0.00013941,2]
[333377089,1722082247503,-2943.8199813,0.00013942,2]
[333377091,1722082247513,-2943.8199813,0.00013942,2]
[333377093,1722082247522,-151.0,0.00013951,2]
[333377095,1722082247532,-151.0,0.00013951,2]
[333377097,1722082247542,-151.0,0.00013951,2]
[333377099,1722082247552,-151.0,0.00013951,2]
[333377101,1722082247561,-151.0,0.00013951,2]
[333377103,1722082247571,-151.0,0.00013951,2]
[333377105,1722082247580,-205.734748,0.00013951,2]
[333377107,1722082247589,-205.734748,0.00013951,2]
[333377109,1722082247599,-1764.365637,0.00013951,2]
[333377111,1722082247608,-1764.365637,0.00013951,2]
[333377113,1722082247617,-151.0,0.00013951,2]
[333377114,1722082247626,-151.0,0.00013951,2]
[333377116,1722082247635,-151.0,0.00013951,2]
[333377118,1722082247644,-2943.8199813,0.00013952,2]
[333377120,1722082247653,-151.0,0.00013952,2]
[333377122,1722082247662,-151.0,0.00013952,2]
[333377124,1722082247671,-151.0,0.00013952,2]
[333377126,1722082247680,-151.0,0.00013952,2]
[333377128,1722082247690,-151.0,0.00013952,2]
[333377130,1722082247699,-151.0,0.00013952,2]
[333377132,1722082247709,-917.22218,0.00013952,2]
[333377134,1722082247718,-917.22218,0.00013952,2]
[333377136,1722082247727,-270.293207,0.00013952,2]
[333377138,1722082247736,-3121.593224,0.00013952,2]
[333377139,1722082247744,-270.293207,0.00013952,2]
[333377141,1722082247754,-3121.593224,0.00013952,2]
[333377143,1722082247763,-958.529847,0.00013952,2]
[333377145,1722082247772,-958.529847,0.00013952,2]
[333377147,1722082247781,-2588.274973,0.00013952,2]
[333377149,1722082247790,-2588.274973,0.00013952,2]
[333377151,1722082247799,-151.0,0.00013952,2]
[333377153,1722082247808,-151.0,0.00013952,2]
[333377155,1722082247817,-4705.395629,0.00013952,2]
[333377157,1722082247826,-4705.395629,0.00013952,2]
[333377159,1722082247835,-633.98423,0.00013952,2]
[333377161,1722082247844,-633.98423,0.00013952,2]
[333377163,1722082247856,-192.183996,0.00013952,2]
[333377165,1722082247865,-192.183996,0.00013952,2]
[333377167,1722082247878,-633.98423,0.00013952,2]
[333377169,1722082247887,-633.98423,0.00013952,2]
[333377171,1722082247896,-192.183996,0.00013952,2]
[333377173,1722082247905,-192.183996,0.00013952,2]
[333377175,1722082247914,-151.0,0.00013952,2]
[333377176,1722082247923,-151.0,0.00013952,2]
[333377178,1722082247932,-151.0,0.00013952,2]
[333377180,1722082247941,-151.0,0.00013952,2]
[333377182,1722082247950,-177.494034,0.00013952,2]
[333377184,1722082247959,-177.494034,0.00013952,2]
[333377186,1722082247967,-177.494034,0.00013952,2]
[333377188,1722082247981,-177.494034,0.00013952,2]
[333377190,1722082247990,-348.809054,0.00013952,2]
[333377192,1722082247999,-348.809054,0.00013952,2]
[333377194,1722082248009,-348.809054,0.00013952,2]
[333377196,1722082248019,-348.809054,0.00013952,2]
[333377198,1722082248027,-297.79826,0.00013952,2]
[333377200,1722082248037,-297.79826,0.00013952,2]
[333377202,1722082248046,-297.79826,0.00013952,2]
[333377204,1722082248056,-297.79826,0.00013952,2]
[333377206,1722082248066,-151.0,0.00013952,2]
[333377208,1722082248075,-151.0,0.00013952,2]
[333377210,1722082248083,-151.0,0.00013952,2]
[333377211,1722082248092,-2321.155208,0.00013952,2]
[333377213,1722082248101,-151.0,0.00013952,2]
[333377215,1722082248111,-151.0,0.00013952,2]
[333377217,1722082248119,-2321.155208,0.00013952,2]
[333377219,1722082248128,-151.0,0.00013952,2]
[333377220,1722082248137,-151.0,0.00013952,2]
[333377221,1722082248146,-1506.348376,0.00013952,2]
[333377222,1722082248155,-1506.348376,0.00013952,2]
[333377223,1722082248164,-158.687503,0.00013952,2]
[333377224,1722082248173,-5887.6399626,0.00013952,2]
[333377225,1722082248182,-6659.31103134,0.00013962,5]
[333377226,1722082248191,-151.0,0.00013962,2]
[333377227,1722082248200,-151.0,0.00013962,2]
[333377228,1722082248210,-159.696666,0.00013962,2]
[333377229,1722082248220,-159.696666,0.00013962,2]
[333377230,1722082248229,-151.0,0.00013962,2]
[333377231,1722082248238,-151.0,0.00013962,2]
[333377232,1722082248247,-151.0,0.00013962,2]
[333377233,1722082248258,-157.213144,0.00013962,2]
[333377234,1722082248268,-151.0,0.00013962,2]
[333377235,1722082248277,-151.0,0.00013962,2]
[333377237,1722082248287,-151.0,0.00013962,2]
[333377239,1722082248297,-205.734748,0.00013962,2]
[333377240,1722082248306,-205.734748,0.00013962,2]
[333377242,1722082248316,-1764.365637,0.00013962,2]
[333377245,1722082248327,-1764.365637,0.00013962,2]
[333377246,1722082248336,-151.0,0.00013962,2]
[333377248,1722082248345,-151.0,0.00013962,2]
[333377250,1722082248354,-151.0,0.00013962,2]
[333377252,1722082248363,-151.0,0.00013962,2]
[333377254,1722082248372,-151.0,0.00013962,2]
[333377256,1722082248382,-151.0,0.00013962,2]
[333377258,1722082248391,-151.0,0.00013962,2]
[333377260,1722082248401,-151.0,0.00013962,2]
[333377262,1722082248410,-151.0,0.00013962,2]
[333377264,1722082248419,-151.0,0.00013962,2]
[333377266,1722082248429,-151.0,0.00013962,2]
[333377268,1722082248438,-151.0,0.00013962,2]
[333377269,1722082248447,-151.0,0.00013962,2]
[333377271,1722082248456,-151.0,0.00013962,2]
[333377273,1722082248465,-151.0,0.00013962,2]
[333377289,1722082248605,-266.739567,0.00013962,2]
[333377291,1722082248616,-917.22218,0.00013962,2]
[333377293,1722082248626,-917.22218,0.00013962,2]
[333377295,1722082248635,-917.22218,0.00013962,2]
[333377297,1722082248644,-917.22218,0.00013962,2]
[333377299,1722082248654,-270.293207,0.00013962,2]
[333377301,1722082248663,-270.293207,0.00013962,2]
[333377303,1722082248672,-3121.593224,0.00013962,2]
[333377304,1722082248681,-3121.593224,0.00013962,2]
[333377306,1722082248691,-270.293207,0.00013962,2]
[333377308,1722082248700,-270.293207,0.00013962,2]
[333377310,1722082248709,-3121.593224,0.00013962,2]
[333377312,1722082248719,-3121.593224,0.00013962,2]
[333377314,1722082248728,-958.529847,0.00013962,2]
[333377316,1722082248738,-958.529847,0.00013962,2]
[333377318,1722082248747,-958.529847,0.00013962,2]
[333377320,1722082248757,-958.529847,0.00013962,2]
[333377322,1722082248767,-2588.274973,0.00013962,2]
[333377324,1722082248776,-2588.274973,0.00013962,2]
[333377326,1722082248786,-2588.274973,0.00013962,2]
[333377328,1722082248795,-2588.274973,0.00013962,2]
[333377330,1722082248804,-151.0,0.00013962,2]
[333377331,1722082248813,-151.0,0.00013962,2]
[333377333,1722082248822,-4705.395629,0.00013962,2]
[333377335,1722082248832,-4705.395629,0.00013962,2]
[333377337,1722082248841,-4705.395629,0.00013962,2]
[333377339,1722082248851,-4705.395629,0.00013962,2]
[333377341,1722082248860,-633.98423,0.00013962,2]
[333377343,1722082248870,-633.98423,0.00013962,2]
[333377345,1722082248879,-192.183996,0.00013962,2]
[333377347,1722082248888,-192.183996,0.00013962,2]
[333377349,1722082248898,-633.98423,0.00013962,2]
[333377351,1722082248907,-633.98423,0.00013962,2]
[333377353,1722082248917,-192.183996,0.00013962,2]
[333377355,1722082248926,-192.183996,0.00013962,2]
[333377357,1722082248938,-151.0,0.00013962,2]
[333377359,1722082248947,-151.0,0.00013962,2]
[333377361,1722082248956,-151.0,0.00013962,2]
[333377363,1722082248965,-151.0,0.00013962,2]
[333377365,1722082248975,-177.494034,0.00013962,2]
[333377367,1722082248988,-177.494034,0.00013962,2]
[333377368,1722082248997,-177.494034,0.00013962,2]
[333377370,1722082249007,-177.494034,0.00013962,2]
[333377372,1722082249016,-348.809054,0.00013962,2]
[333377374,1722082249027,-348.809054,0.00013962,2]
[333377376,1722082249036,-348.809054,0.00013962,2]
[333377378,1722082249046,-348.809054,0.00013962,2]
[333377380,1722082249055,-297.79826,0.00013962,2]
[333377382,1722082249065,-297.79826,0.00013962,2]
[333377384,1722082249074,-297.79826,0.00013962,2]
[333377386,1722082249083,-297.79826,0.00013962,2]
[333377388,1722082249092,-151.0,0.00013962,2]
[333377390,1722082249101,-151.0,0.00013962,2]
[333377392,1722082249111,-2321.155208,0.00013962,2]
[333377394,1722082249120,-151.0,0.00013962,2]
[333377396,1722082249129,-2321.155208,0.00013962,2]
[333377397,1722082249138,-151.0,0.00013962,2]
[333377399,1722082249148,-166.310012,0.00013962,2]
[333377401,1722082249158,-2321.155208,0.00013962,2]
[333377403,1722082249167,-2321.155208,0.00013962,2]
[333377405,1722082249175,-151.0,0.00013962,2]
[333377407,1722082249185,-246.368846,0.00013962,2]
[333377409,1722082249194,-1506.348376,0.00013962,2]
[333377411,1722082249203,-1506.348376,0.00013962,2]
[333377412,1722082249212,-11775.2799252,0.00013962,2]
[333377414,1722082249222,-20267.70493746,0.00013972,5]
[333377416,1722082249231,-151.0,0.00013972,2]
[333377418,1722082249240,-175.854105,0.00013972,2]
[333377420,1722082249249,-151.344668,0.00013972,2]
[333377422,1722082249259,-647.25,0.00013972,2]
[333377424,1722082249269,-159.696666,0.00013972,2]
[333377426,1722082249278,-159.696666,0.00013972,2]
[333377428,1722082249287,-500.0,0.00013972,2]
[333377430,1722082249296,-564.9,0.00013972,2]
[333377432,1722082249305,-500.0,0.00013972,2]
[333377434,1722082249315,-938.04,0.00013972,2]
[333377435,1722082249324,-151.0,0.00013972,2]
[333377437,1722082249333,-500.0,0.00013972,2]
[333377439,1722082249342,-500.0,0.00013972,2]
[333377441,1722082249351,-151.0,0.00013972,2]
[333377443,1722082249362,-500.0,0.00013972,2]
[333377445,1722082249372,-500.0,0.00013972,2]
[333377447,1722082249382,-151.0,0.00013972,2]
[333377449,1722082249392,-500.0,0.00013972,2]
[333377451,1722082249401,-500.0,0.00013972,2]
[333377453,1722082249410,-151.0,0.00013972,2]
[333377455,1722082249419,-151.0,0.00013972,2]
[333377457,1722082249429,-563.73,0.00013972,2]
[333377458,1722082249438,-151.0,0.00013972,2]
[333377460,1722082249447,-624.59,0.00013972,2]
[333377462,1722082249457,-151.0,0.00013972,2]
[333377464,1722082249466,-151.0,0.00013972,2]
[333377466,1722082249475,-151.0,0.00013972,2]
[333377468,1722082249486,-205.734748,0.00013972,2]
[333377470,1722082249495,-205.734748,0.00013972,2]
[333377472,1722082249507,-205.734748,0.00013972,2]
[333377473,1722082249516,-205.734748,0.00013972,2]
[333377475,1722082249526,-500.0,0.00013972,2]
[333377477,1722082249540,-500.0,0.00013972,2]
[333377479,1722082249550,-500.0,0.00013972,2]
[333377481,1722082249559,-1764.365637,0.00013972,2]
[333377483,1722082249569,-1764.365637,0.00013972,2]
[333377485,1722082249578,-1764.365637,0.00013972,2]
[333377487,1722082249588,-1764.365637,0.00013972,2]
[333377488,1722082249598,-796.82,0.00013972,2]
[333377490,1722082249607,-500.0,0.00013972,2]
[333377492,1722082249617,-500.0,0.00013972,2]
[333377494,1722082249626,-855.93,0.00013972,2]
[333377496,1722082249635,-500.0,0.00013972,2]
[333377498,1722082249645,-644.31,0.00013972,2]
[333377500,1722082249655,-151.0,0.00013972,2]
[333377502,1722082249665,-151.0,0.00013972,2]
[333377504,1722082249675,-151.0,0.00013972,2]
[333377506,1722082249684,-500.0,0.00013972,2]
[333377508,1722082249694,-326.16,0.00013972,2]
[333377509,1722082249703,-151.0,0.00013972,2]
[333377511,1722082249713,-151.0,0.00013972,2]
[333377513,1722082249723,-151.0,0.00013972,2]
[333377515,1722082249733,-500.0,0.00013972,2]
[333377517,1722082249743,-952.48,0.00013972,2]
[333377519,1722082249752,-500.0,0.00013972,2]
[333377520,1722082249763,-500.0,0.00013972,2]
[333377522,1722082249772,-834.56,0.00013972,2]
[333377524,1722082249782,-351.68142747,0.00013972,2]
[333377527,1722082249798,-148.31857253,0.00013972,2]
[333377529,1722082249808,-500.0,0.00013972,2]
[333377530,1722082249818,-500.0,0.00013972,2]
[333377532,1722082249828,-500.0,0.00013972,2]
[333377534,1722082249838,-500.0,0.00013972,2]
[333377536,1722082249847,-151.0,0.00013972,2]
[333377538,1722082249857,-151.0,0.00013972,2]
[333377540,1722082249867,-244.053513,0.00013972,2]
[333377542,1722082249876,-151.0,0.00013972,2]
[333377543,1722082249885,-161.450088,0.00013972,2]
[333377545,1722082249895,-500.0,0.00013972,2]
[333377547,1722082249905,-151.0,0.00013972,2]
[333377549,1722082249915,-500.0,0.00013972,2]
[333377551,1722082249925,-500.0,0.00013972,2]
[333377553,1722082249934,-375.01627498,0.00013972,2]
[333377555,1722082249944,-500.0,0.00013972,2]
[333377556,1722082249953,-500.0,0.00013972,2]
[333377558,1722082249963,-648.26335558,0.00013972,2]
[333377560,1722082249973,-917.22218,0.00013972,2]
[333377562,1722082249984,-917.22218,0.00013972,2]
[333377564,1722082249993,-917.22218,0.00013972,2]
[333377566,1722082250002,-917.22218,0.00013972,2]
[333377568,1722082250012,-500.0,0.00013972,2]
[333377570,1722082250022,-319.05137873,0.00013972,2]
[333377572,1722082250032,-520.91884925,0.00013972,2]
[333377574,1722082250041,-500.0,0.00013972,2]
[333377575,1722082250050,-1290.22,0.00013972,2]
[333377577,1722082250061,-738.08570634,0.00013972,2]
[333377798,1722082252658,195.23593255,9.9e-05,2]
[333377802,1722082252685,78.13742976,9.9e-05,2]
[333378200,1722082261430,273.37336231,9.9e-05,2]
[333378201,1722082270994,273.37336231,9.9e-05,2]
[333378202,1722082279318,273.37336231,9.9e-05,2]
[333378203,1722082288355,273.37336231,9.9e-05,2]
[333378204,1722082359460,192.15666977,9.999e-05,2]
[333378205,1722082365174,273.37336231,9.9e-05,2]
[333378206,1722082399684,191.3058049,9.999e-05,2]
[333378209,1722083170465,1202.2697833,9.704e-05,2]
[333378210,1722083239154,-250.0,0.00010063,2]
[333378211,1722083239178,-170.00750054,0.00010072,2]
[333378220,1722083345736,154.68290005,9.999e-05,2]
[333378221,1722083355167,-290.91826646,0.00010072,2]
[333378222,1722083355190,-300.0,0.00010396,2]
[333378223,1722083355212,-300.0,0.00010396,2]
[333378224,1722083355237,-24900.0,0.00010397,2]
[333378225,1722083355259,-259.34,0.00010959,2]
[333378226,1722083355279,-19972.5648897,0.00010993,2]
[333378227,1722083355302,-162.5,0.00011031,2]
[333378228,1722083355324,-1796.0782309,0.00011033,2]
[333378229,1722083355346,-162.5,0.00011062,2]
[333378230,1722083355517,-162.5,0.00011092,2]
[333378231,1722083355539,-162.5,0.00011122,2]
[333378232,1722083355560,-10064.5120322,0.00011147,2]
[333378233,1722083355583,-162.5,0.00011152,2]
[333378234,1722083355607,-162.5,0.00011183,2]
[333378235,1722083355631,-110.30919549,0.00011213,2]
[333378236,1722083357129,-52.19080451,0.00011213,2]
[333378237,1722083357151,-109.88077849,0.00011243,2]
[333378238,1722083367123,-52.61922151,0.00011243,2]
[333378239,1722083367147,-102.16710046,0.00011273,2]
[333378240,1722083367173,-60.33289954,0.00011273,2]
[333378241,1722083367195,-162.5,0.00011304,2]
[333378242,1722083367216,-162.5,0.00011334,2]
[333378243,1722083367238,-162.5,0.00011364,2]
[333378244,1722083367262,-162.5,0.00011394,2]
[333378245,1722083367284,-162.5,0.00011425,2]
[333378246,1722083367304,-420.0,0.00011431,2]
[333378247,1722083367327,-420.0,0.00011435,2]
[333378248,1722083367352,-162.5,0.00011455,2]
[333378249,1722083367374,-162.5,0.00011485,2]
[333378250,1722083367398,-162.5,0.00011515,2]
[333378251,1722083367421,-162.5,0.00011546,2]
[333378252,1722083367451,-162.5,0.00011576,2]
[333378253,1722083367475,-162.5,0.00011606,2]
[333378255,1722083404963,273.37336231,9.9e-05,2]
[333378256,1722083410521,135.70680414,0.00010959,2]
[333378257,1722083413110,228.73677946,9.9e-05,2]
[333378258,1722083413136,44.63658285,9.9e-05,2]
[333378293,1722083433447,-80.40319586,0.00010959,2]
[333378294,1722083433462,-180.1,0.00010959,2]
[333378295,1722083433476,-150.08,0.00010959,2]
[333378296,1722083433490,-3028.78558623,0.000129,2]
[333378297,1722083433501,-780.5745866,0.00012955,2]
[333378298,1722083433514,-300.0,0.00012999,2]
[333378299,1722083433527,-7527.52072221,0.00013,2]
[333378300,1722083433539,-153.0,0.00013078,2]
[333378301,1722083433551,-153.0,0.00013078,2]
[333378302,1722083433563,-206.7714858,0.00013078,2]
[333378303,1722083433574,-206.7714858,0.00013178,2]